bitfinex/quotes_ETHUSD_20251215
["timestamp","ask_amount","ask_price","bid_price","bid_amount"]
[1765823526573,0.0642717,2924.9,2924.2,0.4706]
[1765823526769,0.2326717,2924.7,2924.0,1e-08]
[1765823527003,0.552,2924.6,2924.0,1e-08]
[1765823527174,3.41950485,2924.4,2924.0,1e-08]
[1765823527374,0.0645,2924.1,2924.0,1e-08]
[1765823527575,0.6165,2924.1,2924.0,1e-08]
[1765823527996,0.552,2924.1,2924.0,1e-08]
[1765823528272,0.0642717,2924.3,2924.0,1e-08]
[1765823528478,0.0642717,2924.3,2924.1,0.1942]
[1765823528479,0.6162717,2924.3,2924.1,0.1942]
[1765823529101,4.03598894,2924.3,2924.1,0.1942]
[1765823529510,3.41903719,2924.8,2924.2,0.8975]
[1765823529681,3.48304195,2925.1,2924.7,0.4769]
[1765823529876,0.0642717,2925.1,2924.3,0.9217542]
[1765823530211,7.4537422,2925.1,2924.4,0.4706]
[1765823531101,6.9017422,2925.1,2924.4,0.4706]
[1765823531403,0.552,2925.0,2924.4,3.89010046]
[1765823531704,0.552,2925.0,2924.5,0.43412547]
[1765823531907,0.552,2925.0,2924.4,0.4706]
[1765823532110,0.552,2925.0,2924.1,0.6648]
[1765823532407,0.0642717,2925.0,2924.1,0.6648]
[1765823532610,3.48372942,2925.3,2924.9,0.4769]
[1765823532793,3.48372942,2925.3,2925.0,0.4769]
[1765823532794,0.552,2925.1,2925.0,0.4769]
[1765823532995,3.48372942,2925.3,2925.0,0.4769]
[1765823533194,3.97056967,2925.2,2925.1,0.1942]
[1765823533877,7.45341104,2925.2,2924.5,0.4706]
[1765823534084,0.7454411,2925.1,2924.1,4.08458771]
[1765823534612,7.45341104,2925.2,2924.2,3.89033521]
[1765823535109,0.001,2925.3,2925.1,0.6711]
[1765823535273,0.001,2925.3,2925.2,0.4769]
[1765823535474,0.001,2925.3,2925.2,0.9475]
[1765823535704,0.001,2925.3,2925.2,1.40354035]
[1765823536006,0.001,2925.3,2925.2,0.9475]
[1765823536713,0.001,2925.3,2925.1,3.61284128]
[1765823536714,0.001,2925.3,2925.1,0.1942]
[1765823536881,0.001,2925.3,2924.7,0.4706]
[1765823537206,0.552,2925.2,2924.7,0.4706]
[1765823537377,0.001,2925.3,2924.7,0.4706]
[1765823537378,0.552,2925.1,2924.7,0.4706]
[1765823537774,0.1684,2924.8,2924.1,0.1942]
[1765823538024,0.0642717,2925.0,2924.1,0.1942]
[1765823538025,0.552,2924.7,2924.1,0.6648]
[1765823538497,0.552,2924.7,2924.2,0.4706]
[1765823538809,0.0642717,2925.0,2924.6,0.4769]
[1765823539107,0.552,2924.9,2924.6,0.4769]
[1765823539408,0.552,2924.8,2924.7,0.4706]
[1765823540009,0.552,2924.8,2924.7,0.9475]
[1765823541604,0.552,2924.8,2924.1,1.07328188]
[1765823541605,7.39007438,2924.8,2924.1,1.07328188]
[1765823541791,6.83807438,2924.8,2924.1,0.1942]
[1765823541997,0.552,2924.7,2924.2,0.4706]
[1765823542206,6.83807438,2924.8,2924.2,0.4706]
[1765823542416,0.552,2924.7,2924.2,0.4706]
[1765823542913,3.41903719,2924.8,2924.6,0.4769]
[1765823543228,3.41903719,2924.8,2924.6,0.4706]
[1765823543229,0.552,2924.7,2924.6,0.4706]
[1765823543531,3.41856967,2925.2,2924.7,0.4769]
[1765823543697,0.552,2925.1,2924.8,0.4769]
[1765823544204,0.552,2925.1,2924.8,0.9475]
[1765823544613,6.83713934,2925.2,2924.8,0.4769]
[1765823544931,0.552,2925.1,2924.8,0.4769]
[1765823545131,3.41856967,2925.2,2924.8,0.4769]
[1765823545132,3.4837668,2925.3,2924.8,0.4769]
[1765823545423,3.4837668,2925.3,2925.2,0.4769]
[1765823545424,0.001,2925.3,2925.2,0.4769]
[1765823545591,0.001,2925.3,2925.2,3.89546967]
[1765823545798,0.001,2925.3,2925.2,4.36606967]
[1765823546401,0.001,2925.3,2925.2,0.9475]
[1765823546927,0.552,2925.3,2925.1,0.1942]
[1765823547408,3.41856967,2925.2,2925.1,0.1942]
[1765823547606,3.97048832,2925.3,2925.1,0.1942]
[1765823547924,0.001,2925.3,2925.1,0.1942]
[1765823548230,0.551,2925.2,2925.1,0.1942]
[1765823548431,0.551,2925.2,2924.7,0.4706]
[1765823548432,6.83804766,2925.3,2924.7,0.4706]
[1765823548614,1.64114174,2925.2,2924.2,0.4706]
[1765823548814,1.64114174,2925.2,2924.3,0.4706]
[1765823549514,6.83737308,2925.1,2924.3,0.4706]
[1765823549915,0.551,2925.0,2924.3,0.4706]
[1765823550924,6.83737308,2925.1,2924.3,0.4706]
[1765823551106,0.551,2925.0,2924.3,0.87906226]
[1765823551524,3.4189203,2924.9,2924.4,0.4814]
[1765823551825,0.551,2924.8,2924.4,0.4814]
[1765823552125,0.551,2924.8,2924.1,0.1942]
[1765823552496,0.551,2924.8,2924.1,0.1962]
[1765823552724,0.551,2924.8,2924.1,0.6672]
[1765823552927,0.551,2924.7,2924.1,1.07591658]
[1765823553127,0.551,2924.7,2924.2,0.471]
[1765823553428,0.551,2924.7,2924.1,0.1962]
[1765823553626,6.83854202,2924.6,2924.1,0.6672]
[1765823553825,3.41927101,2924.6,2924.1,0.6672]
[1765823554000,6.83854202,2924.6,2924.2,0.471]
[1765823554202,3.41927101,2924.6,2924.2,0.471]
[1765823554430,0.001,2924.9,2924.5,0.4774]
[1765823554621,0.001,2924.9,2924.6,0.4774]
[1765823554622,0.551,2924.8,2924.6,0.4774]
[1765823554930,0.551,2924.8,2924.2,0.471]
[1765823555228,0.551,2924.8,2924.2,0.87971143]
[1765823555447,0.551,2924.8,2924.2,0.471]
[1765823555735,3.97014933,2924.8,2924.2,0.471]
[1765823556027,3.97014933,2924.8,2924.1,0.1962]
[1765823556028,6.83829866,2924.8,2924.1,0.1857]
[1765823556203,0.551,2924.7,2924.1,0.1857]
[1765823556409,6.83829866,2924.8,2924.1,0.6567]
[1765823556609,1.23492987,2924.7,2924.1,0.6567]
[1765823557025,1.23492987,2924.7,2924.1,0.1857]
[1765823557610,6.83854202,2924.6,2924.1,0.002]
[1765823558605,10.25781303,2924.6,2924.1,0.002]
[1765823558951,0.4551,2924.5,2924.1,0.002]
[1765823559100,1.64988429,2924.5,2924.1,0.002]
[1765823559617,0.094,2924.2,2924.1,0.002]
[1765823559819,4.06473873,2924.2,2924.1,0.002]
[1765823560011,4.51623873,2924.2,2924.1,0.002]
[1765823560398,3.51373873,2924.2,2924.1,0.002]
[1765823560602,4.75807583,2924.2,2924.1,0.002]
[1765823560814,3.41973873,2924.2,2924.1,0.002]
[1765823561011,3.97073873,2924.2,2924.1,0.002]
[1765823561228,3.41957851,2924.4,2924.1,0.002]
[1765823561437,0.551,2924.3,2924.1,0.6631]
[1765823561731,0.551,2924.4,2924.3,0.4774]
[1765823561943,0.001,2924.8,2924.3,0.4774]
[1765823562132,0.551,2924.7,2924.4,0.471]
[1765823562536,0.001,2924.8,2924.4,0.471]
[1765823562742,0.001,2924.8,2924.7,0.4774]
[1765823563249,0.001,2924.8,2924.7,0.9484]
[1765823563946,0.001,2924.8,2924.7,0.4774]
[1765823564722,0.552,2924.8,2924.7,0.9484]
[1765823565036,0.001,2924.8,2924.7,0.9484]
[1765823565235,0.552,2924.8,2924.7,0.9484]
[1765823565631,0.552,2924.8,2924.2,0.471]
[1765823565809,3.4191541,2924.7,2924.3,0.40765213]
[1765823566008,3.4191541,2924.7,2924.2,0.471]
[1765823566237,0.001,2924.8,2924.2,0.471]
[1765823566469,0.551,2924.7,2924.6,0.4774]
[1765823566607,0.001,2924.8,2924.7,0.4774]
[1765823567026,0.001,2924.8,2924.7,0.9484]
[1765823567420,0.552,2924.8,2924.7,0.9484]
[1765823568337,3.42003719,2924.8,2924.7,0.9484]
[1765823568546,3.97103719,2924.8,2924.7,0.9484]
[1765823569541,0.001,2924.8,2924.7,4.3675541]
[1765823569736,0.001,2924.8,2924.7,5.14623567]
[1765823570040,0.001,2925.3,2924.8,0.4774]
[1765823570253,0.001,2925.3,2925.2,0.6611]
[1765823570638,0.001,2925.3,2925.2,1.1321]
[1765823571446,0.001,2925.3,2925.2,2.11807929]
[1765823571652,0.001,2925.5,2925.2,2.72436189]
[1765823571843,0.001,2925.5,2925.4,0.4774]
[1765823572156,0.001,2925.5,2925.4,4.47621124]
[1765823572358,0.001,2925.5,2925.4,0.4774]
[1765823572727,0.551,2925.5,2925.2,0.1837]
[1765823573146,0.001,2925.5,2925.2,0.1837]
[1765823573343,0.55,2925.4,2925.2,0.6547]
[1765823573656,0.55,2925.4,2924.9,0.58047529]
[1765823573859,0.55,2925.4,2924.9,0.78895289]
[1765823574060,3.4184528,2925.3,2924.8,0.471]
[1765823574266,6.8369056,2925.3,2924.4,0.471]
[1765823574757,6.8369056,2925.3,2924.4,3.89042494]
[1765823575137,3.4184528,2925.3,2924.5,4.27937368]
[1765823575338,0.55,2925.2,2924.5,4.27937368]
[1765823575554,0.55,2925.2,2924.6,3.89024756]
[1765823575738,3.41838781,2925.4,2924.6,3.89026703]
[1765823575939,0.551,2925.5,2925.3,0.4774]
[1765823576151,3.96922738,2925.5,2925.1,0.1837]
[1765823576354,0.001,2925.4,2925.1,0.1837]
[1765823577042,0.001,2925.4,2924.9,0.471]
[1765823577247,0.001,2925.4,2924.7,0.42793095]
[1765823577631,0.001,2925.4,2924.8,0.43181714]
[1765823577958,0.001,2925.4,2924.8,0.90281714]
[1765823578152,0.001,2925.4,2924.8,4.32181821]
[1765823578350,0.001,2925.4,2924.8,0.90281714]
[1765823578567,0.001,2925.4,2924.8,0.471]
[1765823578755,0.001,2925.4,2924.6,3.41918299]
[1765823579060,0.001,2925.4,2924.3,0.03419621]
[1765823579061,0.55,2925.3,2924.8,0.471]
[1765823579629,0.55,2925.3,2924.4,0.471]
[1765823579842,0.0642717,2925.2,2924.4,1.05147529]
[1765823580061,6.8390097,2924.4,2924.1,0.002]
[1765823580365,3.41919587,2924.7,2924.1,0.1857]
[1765823580366,0.58047529,2924.7,2924.1,0.1857]
[1765823580552,0.55,2924.3,2924.1,0.002]
[1765823580754,0.951004,2924.2,2924.1,0.002]
[1765823581432,38.98126601,2924.2,2924.1,0.002]
[1765823581654,42.36021516,2924.2,2924.1,0.002]
[1765823582380,42.36021516,2924.2,2923.1,0.002]
[1765823582381,30.405504,2924.1,2923.1,0.002]
[1765823582537,24.36219929,2923.2,2923.1,0.002]
[1765823582740,12.89622729,2923.2,2923.1,0.002]
[1765823582977,12.40748769,2923.2,2923.1,0.002]
[1765823583160,1.120204,2923.2,2923.1,0.002]
[1765823583361,1.670204,2923.2,2923.1,0.002]
[1765823583582,20.35263929,2923.2,2923.1,0.002]
[1765823583868,16.81463929,2923.2,2923.1,0.002]
[1765823584060,10.58863929,2923.2,2923.1,0.002]
[1765823584264,4.25698388,2923.2,2923.1,0.002]
[1765823584461,4.55138388,2923.2,2923.1,0.002]
[1765823584782,0.55,2923.2,2923.1,0.002]
[1765823585088,0.0642717,2923.2,2923.1,0.002]
[1765823585241,0.6142717,2923.2,2923.1,0.002]
[1765823585438,0.7042717,2923.2,2923.1,0.002]
[1765823585666,2.66826186,2923.2,2923.1,0.002]
[1765823585842,20.31949615,2923.2,2923.1,0.002]
[1765823586043,33.24873715,2923.2,2923.1,0.002]
[1765823586268,42.01897546,2923.2,2923.1,0.002]
[1765823586477,35.70613946,2923.2,2923.1,0.002]
[1765823586667,32.58647046,2923.2,2923.1,0.002]
[1765823586879,18.55584674,2923.2,2923.1,0.002]
[1765823587085,5.71414174,2923.2,2923.1,0.002]
[1765823587285,4.06565558,2923.2,2923.1,0.002]
[1765823587581,4.61565558,2923.2,2923.1,0.002]
[1765823587782,0.0642717,2923.2,2923.1,0.002]
[1765823587946,0.55,2923.2,2923.1,0.002]
[1765823588140,6.84124089,2923.5,2923.1,0.2]
[1765823588341,0.55,2923.4,2923.1,0.2]
[1765823588542,0.55,2923.4,2923.1,0.002]
[1765823589379,0.551,2923.3,2923.1,0.002]
[1765823589581,0.551,2923.3,2923.1,0.68682855]
[1765823590147,0.551,2923.2,2923.1,0.002]
[1765823591245,0.6087,2923.2,2923.1,0.002]
[1765823592072,1.0961,2923.2,2923.1,0.002]
[1765823592274,34.92251259,2923.2,2923.1,0.002]
[1765823592472,34.97251259,2923.2,2923.1,0.002]
[1765823592782,33.33381803,2923.2,2923.1,0.002]
[1765823592987,20.29486403,2923.2,2923.1,0.002]
[1765823593374,20.29486403,2923.2,2922.9,1e-08]
[1765823593375,19.21743129,2923.0,2922.9,1e-08]
[1765823593772,19.31330629,2923.0,2922.9,1e-08]
[1765823593971,12.46796999,2923.0,2922.9,1e-08]
[1765823594178,15.54938677,2923.0,2922.9,1e-08]
[1765823594584,19.31282943,2923.0,2922.9,1e-08]
[1765823594792,18.97052943,2923.0,2922.9,1e-08]
[1765823595290,20.64965746,2923.0,2922.9,1e-08]
[1765823595658,19.6959688,2923.0,2922.9,1e-08]
[1765823595993,18.97052943,2923.0,2922.9,1e-08]
[1765823596205,18.39926343,2923.0,2922.9,1e-08]
[1765823596675,17.34974243,2923.0,2922.9,1e-08]
[1765823596863,18.98226229,2923.0,2922.9,1e-08]
[1765823597069,18.03385721,2923.0,2922.9,1e-08]
[1765823597260,17.34974243,2923.0,2922.9,1e-08]
[1765823597459,0.98597929,2922.9,2921.9,0.002]
[1765823597660,5.845656,2922.0,2921.9,0.002]
[1765823597986,0.7198,2922.0,2921.9,0.002]
[1765823598292,1.2072,2922.0,2921.9,0.002]
[1765823598492,0.1688,2922.0,2921.9,0.002]
[1765823598659,0.1111,2922.2,2921.9,0.002]
[1765823598860,0.551,2922.1,2921.9,0.002]
[1765823599190,0.405504,2921.7,2921.1,0.006]
[1765823599391,0.0048,2921.3,2921.1,0.006]
[1765823599591,0.551,2921.2,2921.1,0.006]
[1765823599888,0.4917,2921.7,2921.1,0.006]
[1765823600092,0.552,2921.6,2921.1,0.006]
[1765823600294,0.6028,2921.8,2921.1,0.006]
[1765823600502,0.1111,2921.8,2921.1,0.1862]
[1765823600803,0.552,2921.7,2921.1,4.06435908]
[1765823601091,0.552,2921.7,2921.1,1.39041864]
[1765823601299,3.42252304,2921.9,2921.1,0.641]
[1765823601600,1.74464494,2924.7,2921.8,0.4744]
[1765823601601,0.1111,2922.6,2921.8,0.4744]
[1765823601813,0.552,2922.2,2922.0,0.4744]
[1765823602097,0.552,2922.2,2921.1,10.4563037]
[1765823602098,3.42166233,2922.6,2921.1,10.4563037]
[1765823602283,0.552,2922.5,2921.2,0.4548]
[1765823602676,6.8436901,2922.4,2921.3,3.42313353]
[1765823603074,6.8436901,2922.4,2921.4,0.4548]
[1765823603294,0.552,2922.3,2921.4,0.4548]
[1765823603597,0.552,2922.2,2921.4,0.4548]
[1765823603902,3.42184505,2922.4,2921.4,0.4548]
[1765823604104,0.552,2922.2,2921.4,0.4548]
[1765823604288,0.552,2922.2,2921.1,0.1862]
[1765823604596,0.4917,2922.1,2921.1,0.1862]
[1765823604910,10.26694044,2922.0,2921.1,0.006]
[1765823605267,7.33632696,2922.0,2921.1,0.006]
[1765823605502,10.26694044,2922.0,2921.1,0.006]
[1765823605687,0.0577,2921.2,2921.1,0.006]
[1765823605895,0.6097,2921.2,2921.1,0.006]
[1765823606901,4.03295071,2921.2,2921.1,0.006]
[1765823607770,5.32112649,2921.2,2921.1,0.006]
[1765823608176,6.30710578,2921.2,2921.1,0.006]
[1765823609182,5.90160178,2921.2,2921.1,0.006]
[1765823609388,5.41420178,2921.2,2921.1,0.006]
[1765823609615,5.90160178,2921.2,2921.1,0.006]
[1765823609800,9.22793978,2921.2,2921.1,0.006]
[1765823609994,5.75510578,2921.2,2921.1,0.006]
[1765823610295,34.86220178,2921.2,2921.1,0.006]
[1765823610478,4.061426,2921.2,2921.1,0.006]
[1765823610678,4.03295071,2921.2,2921.1,0.006]
[1765823610897,3.48095071,2921.2,2921.1,0.006]
[1765823611101,0.552,2921.2,2921.1,0.006]
[1765823611614,1.0322,2921.2,2921.1,0.006]
[1765823611799,1.89556888,2921.2,2921.1,0.006]
[1765823612003,1.27446888,2921.2,2921.1,0.006]
[1765823612310,0.0642717,2921.3,2921.1,0.006]
[1765823612492,0.553,2921.2,2921.1,0.006]
[1765823612690,0.0642717,2921.3,2921.1,0.2006]
[1765823612891,0.0642717,2921.3,2921.1,0.6734]
[1765823612892,0.6172717,2921.3,2921.1,0.6734]
[1765823613089,0.6172717,2921.3,2921.1,0.2006]
[1765823613417,0.0642717,2921.3,2921.2,0.9315]
[1765823613620,0.552,2921.4,2921.2,0.9315]
[1765823613788,0.552,2921.4,2921.2,0.45638116]
[1765823613981,0.552,2921.3,2921.1,0.006]
[1765823614394,6.84570992,2921.6,2921.1,0.006]
[1765823614599,0.552,2921.5,2921.1,0.006]
[1765823614891,6.84570992,2921.6,2921.1,0.006]
[1765823615096,0.552,2921.5,2921.1,0.006]
[1765823615411,1.0986717,2921.5,2921.1,0.006]
[1765823615711,0.0669,2921.2,2921.1,0.006]
[1765823616701,0.5451,2921.2,2921.1,0.006]
[1765823616910,3.96835071,2921.2,2921.1,0.006]
[1765823618885,4.04215071,2921.2,2921.1,0.006]
[1765823619313,3.49015071,2921.2,2921.1,0.006]
[1765823619497,3.42325071,2921.2,2921.1,0.006]
[1765823619697,3.97525071,2921.2,2921.1,0.006]
[1765823620298,3.42325071,2921.2,2921.1,0.006]
[1765823620499,5.21151703,2921.2,2921.1,0.006]
[1765823620885,4.18531703,2921.2,2921.1,0.006]
[1765823621093,3.48741246,2921.3,2921.1,0.6734]
[1765823621319,3.42305282,2921.4,2921.2,0.4728]
[1765823621320,3.42305002,2921.4,2921.2,0.4728]
[1765823621503,0.552,2921.3,2921.2,0.4587]
[1765823621698,0.552,2921.3,2921.2,0.9315]
[1765823621900,0.552,2921.3,2921.1,0.2006]
[1765823622222,0.0669,2921.2,2921.1,0.006]
[1765823622395,6.91009928,2921.5,2921.1,0.006]
[1765823622588,0.552,2921.4,2921.1,0.006]
[1765823622996,3.42313353,2921.3,2921.1,0.006]
[1765823623202,0.552,2921.2,2921.1,0.006]
[1765823624006,0.6189,2921.2,2921.1,0.006]
[1765823624208,1.3718269,2921.2,2921.1,0.006]
[1765823624422,1.8500269,2921.2,2921.1,0.006]
[1765823624991,5.27327761,2921.2,2921.1,0.006]
[1765823626602,5.67878161,2921.2,2921.1,0.006]
[1765823626827,5.7810569,2921.2,2921.1,0.006]
[1765823627259,5.8537529,2921.2,2921.1,0.006]
[1765823627417,5.8537529,2921.2,2919.3,0.01396625]
[1765823627418,8.187751,2919.5,2919.3,0.01396625]
[1765823627599,0.6289,2919.4,2919.3,0.01396625]
[1765823627945,0.1748855,2919.6,2919.3,0.01396625]
[1765823628235,0.7278855,2919.6,2919.3,0.01396625]
[1765823628439,1.2102855,2919.6,2919.3,0.01396625]
[1765823628595,0.553,2919.5,2919.3,0.01396625]
[1765823628793,0.553,2919.4,2919.3,0.01396625]
[1765823629728,0.1748855,2919.6,2919.3,0.94546625]
[1765823629894,0.1748855,2919.6,2919.4,0.4587]
[1765823630095,0.1748855,2919.6,2919.3,0.01396625]
[1765823630305,0.553,2919.5,2919.3,0.01396625]
[1765823630746,3.60002794,2919.6,2919.3,0.01396625]
[1765823630955,0.553,2919.5,2919.3,0.01396625]
[1765823631154,0.553,2919.5,2919.3,0.47266625]
[1765823631440,3.97827743,2919.5,2919.3,0.01396625]
[1765823631752,3.97827804,2919.5,2919.3,0.01396625]
[1765823631911,3.97832644,2919.5,2919.3,0.01396625]
[1765823632235,3.60001343,2919.6,2919.3,0.01396625]
[1765823632407,3.6000539,2919.6,2919.3,0.01396625]
[1765823632613,3.4251684,2919.6,2919.3,0.01396625]
[1765823632806,0.553,2919.5,2919.3,0.01396625]
[1765823633210,3.97824565,2919.5,2919.3,0.01396625]
[1765823633450,0.553,2919.4,2919.3,0.47266625]
[1765823633664,3.42456754,2920.1,2919.3,0.47266625]
[1765823633952,1.13347529,2920.0,2919.3,0.94546625]
[1765823634152,1.13347529,2920.0,2919.3,0.48876625]
[1765823634721,0.1402,2919.9,2919.3,0.48876625]
[1765823635039,1.13347529,2920.0,2919.3,0.94553656]
[1765823635243,3.48868281,2920.3,2919.9,0.4728]
[1765823635410,7.46609392,2920.3,2919.9,0.4728]
[1765823635739,7.46609392,2920.3,2919.4,0.4587]
[1765823636442,0.6172717,2920.3,2919.4,0.4587]
[1765823636643,0.553,2920.3,2920.2,0.6674]
[1765823637014,3.97730572,2920.3,2919.8,0.4587]
[1765823637211,0.553,2920.3,2919.8,0.4587]
[1765823637444,3.97730663,2920.3,2919.8,0.4587]
[1765823638034,7.40161326,2920.3,2919.8,0.4587]
[1765823638215,7.40161326,2920.3,2919.3,0.01596625]
[1765823638216,7.80578822,2920.3,2919.4,3.42531868]
[1765823638418,7.80578822,2920.3,2919.5,0.4587]
[1765823638419,0.553,2920.3,2919.5,0.4587]
[1765823638712,3.97733189,2920.3,2919.5,0.4587]
[1765823638929,3.97733189,2920.3,2919.6,3.42507463]
[1765823639145,3.97733189,2920.3,2919.5,3.88391504]
[1765823639516,7.40166378,2920.3,2919.5,3.88391504]
[1765823639842,0.553,2920.3,2919.6,0.8470915]
[1765823640143,0.553,2920.3,2920.2,0.1946]
[1765823640345,3.42418549,2920.5,2919.5,0.4587]
[1765823640346,0.553,2920.4,2919.5,0.4587]
[1765823640548,0.553,2920.3,2919.6,0.4587]
[1765823640737,0.553,2920.3,2919.6,0.8470918]
[1765823641123,6.84837098,2920.5,2919.7,0.4587]
[1765823641566,0.553,2920.4,2919.7,0.4587]
[1765823641730,6.84861144,2920.3,2919.7,0.4587]
[1765823642062,3.97724128,2920.4,2919.7,0.4587]
[1765823642218,0.1917,2919.8,2919.3,0.01596625]
[1765823642552,0.553,2919.9,2919.4,0.4853]
[1765823642938,0.553,2919.9,2919.8,0.4571]
[1765823643156,0.0642717,2920.5,2919.8,0.9424]
[1765823643342,0.554,2920.4,2919.8,0.9424]
[1765823643545,0.553,2920.5,2919.9,1.26454188]
[1765823643748,0.0642717,2921.1,2920.4,0.4571]
[1765823644045,0.554,2921.0,2920.4,0.4571]
[1765823644722,6.9110612,2921.1,2920.4,0.4571]
[1765823645030,0.553,2921.0,2920.4,0.4571]
[1765823645461,0.0642717,2920.8,2920.4,0.4571]
[1765823645864,0.0642717,2920.8,2920.4,0.9424]
[1765823646155,0.0642717,2920.8,2920.4,0.4853]
[1765823646156,0.0642717,2920.5,2920.4,0.4853]
[1765823646526,0.0642717,2920.5,2920.4,0.9424]
[1765823647340,0.0642717,2921.0,2920.4,4.82185164]
[1765823647540,0.0642717,2921.1,2920.7,0.4571]
[1765823647764,0.0642717,2921.1,2920.4,0.94056318]
[1765823647936,3.4234851,2921.0,2920.4,0.94056318]
[1765823648130,3.48769054,2921.1,2920.4,0.94056318]
[1765823648329,3.48769054,2921.1,2920.4,3.90947886]
[1765823648539,0.553,2921.0,2920.5,0.4853]
[1765823648959,0.553,2921.0,2920.9,0.4571]
[1765823649260,0.0642717,2921.1,2920.9,0.4571]
[1765823649466,3.48766602,2921.1,2920.5,0.4853]
[1765823649658,0.0642717,2920.8,2920.5,0.4853]
[1765823650265,0.0642717,2920.8,2920.7,0.4571]
[1765823650760,0.0642717,2921.1,2920.7,1.37904651]
[1765823651061,0.0652717,2921.1,2921.0,0.4571]
[1765823651265,0.0652717,2921.1,2921.0,0.9424]
[1765823651660,0.001,2921.1,2921.0,0.9424]
[1765823651865,0.001,2921.1,2921.0,4.3658851]
[1765823652166,0.001,2921.1,2921.0,1.72134795]
[1765823652370,0.001,2921.1,2921.0,0.9424]
[1765823653355,0.001,2921.1,2921.0,0.4571]
[1765823653670,0.0642717,2920.5,2920.2,0.4853]
[1765823653869,3.42418846,2920.4,2919.9,0.186]
[1765823654070,0.0642717,2920.3,2919.9,0.186]
[1765823654371,0.0642717,2920.3,2919.9,0.6713]
[1765823655474,0.0642717,2920.1,2919.9,0.6713]
[1765823656039,0.0642717,2920.1,2919.9,0.186]
[1765823656443,3.48882193,2920.1,2919.9,0.186]
[1765823656640,3.77985959,2920.1,2919.8,0.002]
[1765823656866,0.553,2920.0,2919.8,0.4873]
[1765823657275,0.553,2920.0,2919.8,0.002]
[1765823658248,0.0642717,2919.9,2919.8,0.002]
[1765823658444,0.7011717,2919.9,2919.8,0.002]
[1765823658650,0.552,2920.0,2919.8,0.002]
[1765823659244,3.42442921,2920.2,2919.8,0.002]
[1765823659450,0.5622717,2920.8,2920.1,0.6431]
[1765823659451,6.9878735,2920.7,2920.1,0.6431]
[1765823659644,0.553,2920.6,2920.1,0.6431]
[1765823660163,0.553,2920.6,2920.1,0.186]
[1765823660348,0.553,2920.6,2920.1,0.6713]
[1765823660548,0.0652717,2920.8,2920.5,0.4571]
[1765823660776,0.6182717,2920.8,2920.5,0.9424]
[1765823661279,0.553,2920.7,2920.6,0.4853]
[1765823661783,0.553,2920.7,2920.2,0.4853]
[1765823662657,3.97684183,2920.7,2920.2,0.4853]
[1765823663054,0.553,2920.7,2920.6,0.4571]
[1765823663782,0.553,2920.7,2920.1,0.186]
[1765823663982,7.8973898,2920.7,2919.8,0.4873]
[1765823664678,0.63327529,2920.6,2919.8,0.002]
[1765823664852,0.1393,2919.9,2919.8,0.002]
[1765823665055,0.7437,2919.9,2919.8,0.002]
[1765823665250,1.2372,2919.9,2919.8,0.002]
[1765823665672,1.2372,2919.9,2918.6,0.002]
[1765823665982,0.0049,2919.4,2918.6,0.002]
[1765823666281,0.5579,2919.4,2918.6,0.002]
[1765823666486,5.06173666,2919.4,2918.6,0.002]
[1765823666664,8.48709803,2919.4,2918.4,4.34740978]
[1765823666863,0.58047529,2919.3,2918.4,4.34740978]
[1765823667163,0.0642717,2919.0,2918.4,4.34740978]
[1765823667350,0.553,2918.9,2918.4,4.34740978]
[1765823667560,0.1411,2918.9,2918.4,4.34740978]
[1765823667786,1.26376517,2919.2,2918.4,4.34740978]
[1765823667787,0.553,2918.8,2918.4,4.83270978]
[1765823667990,0.58047529,2919.4,2918.4,4.34740978]
[1765823668286,1.051,2919.3,2918.4,4.34740978]
[1765823668466,3.42559605,2919.2,2918.4,4.34740978]
[1765823668866,6.8511921,2919.2,2918.4,4.34940978]
[1765823669057,0.553,2919.1,2918.5,0.4853]
[1765823669257,0.0642717,2919.0,2918.5,0.4853]
[1765823669462,0.0642717,2919.0,2918.5,1.31142966]
[1765823669684,0.0642717,2919.0,2918.5,0.82612966]
[1765823670185,0.553,2918.9,2918.5,0.82612966]
[1765823670388,0.0642717,2918.8,2918.4,4.34940978]
[1765823670575,0.553,2918.7,2918.5,0.4991]
[1765823670778,0.0642717,2918.8,2918.5,0.4991]
[1765823670962,0.6172717,2918.8,2918.7,0.4769]
[1765823671363,0.553,2918.8,2918.7,0.976]
[1765823672088,0.0642717,2919.7,2918.7,0.976]
[1765823672268,0.0642717,2920.3,2918.4,7.77594486]
[1765823672269,0.553,2919.6,2919.3,0.4673]
[1765823672463,3.42473084,2920.0,2919.3,0.4673]
[1765823672683,0.0642717,2919.8,2919.3,0.4673]
[1765823672880,0.554,2919.7,2919.3,0.9467]
[1765823673290,0.554,2919.7,2919.4,0.4794]
[1765823673679,0.554,2919.7,2919.0,0.1812]
[1765823674074,0.0642717,2919.6,2919.0,0.1812]
[1765823674279,0.0642717,2919.6,2918.8,0.4794]
[1765823674477,3.48963343,2919.4,2918.8,0.4794]
[1765823674682,0.0642717,2919.2,2918.4,4.34940978]
[1765823674860,0.554,2919.1,2918.7,3.4261574]
[1765823675059,0.554,2919.1,2918.6,3.42624174]
[1765823675289,0.554,2919.1,2919.0,0.4673]
[1765823675493,0.554,2919.1,2919.0,0.9467]
[1765823675665,0.0642717,2920.1,2919.0,0.9467]
[1765823675988,0.0642717,2919.9,2919.1,0.6606]
[1765823676171,0.0642717,2919.9,2919.1,0.1812]